bitfinex/quotes_SOLUSD_20250922
["timestamp","ask_amount","ask_price","bid_price","bid_amount"]
[1758499202167,14.30559401,236.61,236.6,0.2]
[1758499202466,16.00047336,236.61,236.6,0.2]
[1758499203067,13.59559401,236.6,236.59,0.2]
[1758499203248,2.40487935,236.61,236.59,0.2]
[1758499203449,0.71,236.6,236.59,0.2]
[1758499203863,2.40495116,236.6,236.59,0.2]
[1758499204244,5.96033812,236.6,236.59,0.2]
[1758499205161,51.91593213,236.6,236.59,0.2]
[1758499205672,13.59559401,236.59,236.5,0.2]
[1758499205856,17.14930679,236.59,236.5,0.2]
[1758499206053,13.59559401,236.57,236.5,0.2]
[1758499206365,13.59559401,236.55,236.5,0.2]
[1758499206857,0.71,236.54,236.5,0.2]
[1758499207063,164.6,236.53,236.5,0.2]
[1758499207562,165.31,236.53,236.5,0.2]
[1758499207758,132.2,236.53,236.51,0.71]
[1758499207940,164.6,236.53,236.51,0.71]
[1758499208140,164.6,236.53,236.52,0.71]
[1758499208368,168.82779351,236.53,236.5,0.2]
[1758499208544,168.82779351,236.53,236.5,0.91]
[1758499209554,146.50559401,236.52,236.5,0.2]
[1758499209755,150.73478419,236.52,236.5,0.2]
[1758499210069,132.2,236.52,236.5,0.2]
[1758499210290,32.42,236.51,236.5,0.2]
[1758499210479,36.64815102,236.51,236.5,0.2]
[1758499210778,136.42800939,236.52,236.5,0.2]
[1758499210961,32.44,236.51,236.5,0.91]
[1758499211163,136.42800939,236.52,236.51,0.71]
[1758499211364,168.86800939,236.52,236.51,0.71]
[1758499211680,168.86800939,236.52,236.5,0.2]
[1758499212466,36.66815102,236.51,236.5,0.2]
[1758499214461,36.66815102,236.51,236.5,0.92]
[1758499215058,36.66815102,236.51,236.5,0.2]
[1758499216367,37.35815102,236.51,236.5,0.2]
[1758499217366,36.66815102,236.51,236.5,0.2]
[1758499219302,37.35815102,236.51,236.5,0.2]
[1758499220380,36.66815102,236.51,236.5,0.2]
[1758499220570,37.35815102,236.51,236.5,0.2]
[1758499222691,50.95374503,236.51,236.5,0.2]
[1758499222891,52.64927096,236.51,236.5,0.2]
[1758499223364,13.59559401,236.5,236.47,1e-08]
[1758499223568,63.21964853,236.51,236.47,1e-08]
[1758499223569,13.59559401,236.48,236.47,1e-08]
[1758499223979,46.82559401,236.48,236.47,1e-08]
[1758499224179,52.75023868,236.48,236.47,1e-08]
[1758499224372,19.52023868,236.48,236.47,1e-08]
[1758499224577,19.52023868,236.48,236.47,0.72000001]
[1758499224892,52.12023868,236.48,236.47,1e-08]
[1758499225194,51.11428142,236.48,236.47,1e-08]
[1758499225382,18.51428142,236.48,236.47,1e-08]
[1758499225578,53.33009488,236.48,236.47,1e-08]
[1758499225796,19.52009488,236.48,236.47,1e-08]
[1758499226094,51.04428142,236.48,236.47,1e-08]
[1758499226792,51.73428142,236.48,236.47,1e-08]
[1758499227393,51.04428142,236.48,236.47,1e-08]
[1758499227575,51.74428142,236.48,236.47,1e-08]
[1758499227777,51.04428142,236.48,236.47,1e-08]
[1758499227993,51.74428142,236.48,236.47,1e-08]
[1758499228195,51.04428142,236.48,236.47,1e-08]
[1758499229283,0.7,236.56,236.47,0.68000001]
[1758499229480,46.87559401,236.55,236.47,0.68000001]
[1758499229692,13.59559401,236.53,236.47,0.68000001]
[1758499230001,4.22815102,236.51,236.47,0.68000001]
[1758499230297,4.22815102,236.51,236.48,0.68]
[1758499230298,33.28,236.5,236.48,0.68]
[1758499230802,33.28,236.5,236.47,1e-08]
[1758499231301,14.29559401,236.49,236.47,1e-08]
[1758499231602,46.89559401,236.48,236.47,1e-08]
[1758499231801,47.59559401,236.48,236.47,1e-08]
[1758499231977,51.82428142,236.48,236.47,1e-08]
[1758499234089,18.52428142,236.48,236.47,1e-08]
[1758499234290,56.07486632,236.48,236.47,1e-08]
[1758499234805,51.84428142,236.48,236.47,1e-08]
[1758499235101,51.14428142,236.48,236.47,1e-08]
[1758499236476,17.82428142,236.48,236.47,1e-08]
[1758499236683,51.12428142,236.48,236.47,1e-08]
[1758499239613,17.82428142,236.48,236.47,1e-08]
[1758499239814,51.10428142,236.48,236.47,1e-08]
[1758499240109,4.22868741,236.48,236.47,1e-08]
[1758499240304,4.22868741,236.48,236.47,0.68000001]
[1758499240506,37.50868741,236.48,236.47,0.68000001]
[1758499241130,51.80428142,236.48,236.47,1e-08]
[1758499243715,4.22868741,236.48,236.47,1e-08]
[1758499243917,33.26,236.48,236.47,0.68000001]
[1758499244988,37.48868741,236.48,236.47,0.68000001]
[1758499245814,37.48868741,236.48,236.47,1e-08]
[1758499246299,68.66868741,236.48,236.47,1e-08]
[1758499247117,11.26933503,236.54,236.47,0.68000001]
[1758499247423,31.2,236.5,236.47,0.68000001]
[1758499247923,33.22,236.49,236.47,0.68000001]
[1758499248223,33.22,236.49,236.47,1e-08]
[1758499248912,4.22868741,236.48,236.47,1e-08]
[1758499249112,44.79559401,236.44,236.41,1e-08]
[1758499249313,33.2,236.43,236.41,1e-08]
[1758499249498,13.59559401,236.42,236.41,1e-08]
[1758499249697,17.44592216,236.42,236.41,1e-08]
[1758499249897,49.96592216,236.42,236.41,1e-08]
[1758499250197,36.37032815,236.42,236.41,0.68000001]
[1758499250899,43.43543249,236.42,236.41,1e-08]
[1758499251100,57.7310265,236.42,236.41,1e-08]
[1758499251719,59.42719951,236.42,236.41,1e-08]
[1758499251915,59.54719951,236.42,236.41,1e-08]
[1758499256130,58.84719951,236.42,236.41,1e-08]
[1758499256426,59.54719951,236.42,236.41,1e-08]
[1758499256724,58.84719951,236.42,236.41,1e-08]
[1758499257115,59.50719951,236.42,236.41,1e-08]
[1758499257417,58.84719951,236.42,236.41,1e-08]
[1758499258604,58.82719951,236.42,236.41,1e-08]
[1758499259711,25.50719951,236.42,236.41,0.65000001]
[1758499259901,5.9856719,236.42,236.41,0.65000001]
[1758499260106,40.70008874,236.42,236.41,0.65000001]
[1758499260335,43.53543249,236.42,236.41,0.65000001]
[1758499260630,39.3056719,236.42,236.41,0.65000001]
[1758499262126,36.47032815,236.42,236.41,0.65000001]
[1758499262639,33.3,236.42,236.41,0.65000001]
[1758499265620,4.2292408,236.45,236.41,0.65000001]
[1758499265920,13.59559401,236.43,236.41,1e-08]
[1758499266114,52.86361181,236.42,236.41,1e-08]
[1758499266312,52.88361181,236.42,236.41,1e-08]
[1758499266528,57.1133724,236.42,236.41,1e-08]
[1758499268228,43.51777839,236.42,236.41,1e-08]
[1758499268542,44.17777839,236.42,236.41,1e-08]
[1758499268859,43.51777839,236.42,236.41,1e-08]
[1758499269034,39.2880178,236.42,236.41,0.65000001]
[1758499271045,36.45171639,236.42,236.41,0.65000001]
[1758499271226,3.15171639,236.42,236.41,0.65000001]
[1758499271427,33.3,236.42,236.41,0.65000001]
[1758499272643,33.3,236.42,236.41,1e-08]
[1758499273135,33.3,236.42,236.41,0.71000001]
[1758499274022,37.52976059,236.42,236.41,0.71000001]
[1758499274357,5.98878872,236.42,236.41,1e-08]
[1758499274547,33.28,236.42,236.41,0.71000001]
[1758499274729,33.28,236.42,236.41,1e-08]
[1758499275052,40.66216646,236.42,236.41,1e-08]
[1758499275350,37.50976059,236.42,236.41,1e-08]
[1758499275844,33.28,236.42,236.41,0.71000001]
[1758499277524,33.28,236.42,236.41,1e-08]
[1758499277740,37.50976059,236.42,236.41,1e-08]
[1758499278046,40.66278661,236.42,236.41,1e-08]
[1758499278546,43.49993094,236.42,236.41,1e-08]
[1758499279038,44.19993094,236.42,236.41,1e-08]
[1758499279444,57.79552495,236.42,236.41,1e-08]
[1758499280433,23.81552495,236.42,236.41,1e-08]
[1758499280635,43.45993094,236.42,236.41,1e-08]
[1758499280841,43.45993094,236.42,236.41,0.71000001]
[1758499281031,43.45993094,236.42,236.41,1e-08]
[1758499281742,43.46103857,236.42,236.41,1e-08]
[1758499285652,39.23127798,236.42,236.41,0.71000001]
[1758499285836,5.99127798,236.42,236.41,1e-08]
[1758499286038,40.58389424,236.42,236.41,1e-08]
[1758499286350,40.58389424,236.42,236.41,0.71000001]
[1758499286351,39.19127798,236.42,236.41,0.71000001]
[1758499286526,39.19127798,236.42,236.41,1e-08]
[1758499287056,43.42103857,236.42,236.41,1e-08]
[1758499287835,44.14103857,236.42,236.41,1e-08]
[1758499289462,43.42103857,236.42,236.41,1e-08]
[1758499297562,57.73663258,236.42,236.41,1e-08]
[1758499298470,57.01663258,236.42,236.41,1e-08]
[1758499299167,5.99127798,236.42,236.41,0.67000001]
[1758499299375,36.25413365,236.42,236.41,0.67000001]
[1758499299551,33.1,236.42,236.41,0.67000001]
[1758499300453,4.228855,236.48,236.41,4.89993952]
[1758499300770,39.10655912,236.47,236.42,0.67]
[1758499300981,6.00655912,236.46,236.43,0.67]
[1758499301186,39.10655912,236.45,236.41,0.67000001]
[1758499301479,6.00655912,236.44,236.41,0.67000001]
[1758499301664,33.08,236.43,236.42,0.67]
[1758499302974,35.92489502,236.43,236.42,0.67]
[1758499303161,35.92504328,236.43,236.42,0.67]
[1758499304558,35.92504328,236.43,236.42,4.89976059]
[1758499304749,35.92504328,236.43,236.42,0.67]
[1758499305478,33.08,236.43,236.42,0.67]
[1758499307176,35.92604508,236.43,236.42,0.67]
[1758499310075,35.92604508,236.43,236.41,1e-08]
[1758499310383,33.08,236.43,236.41,1e-08]
[1758499310581,33.08,236.43,236.41,0.67000001]
[1758499310877,33.08,236.43,236.41,1e-08]
[1758499311083,33.08,236.43,236.41,0.67000001]
[1758499311378,33.08,236.43,236.41,1e-08]
[1758499311560,33.08,236.43,236.42,0.67]
[1758499311761,2.84563525,236.43,236.42,0.67]
[1758499311967,33.02,236.43,236.42,0.67]
[1758499312184,132.2,236.45,236.42,4.89969736]
[1758499312377,33.0,236.44,236.42,0.67]
[1758499312578,33.0,236.44,236.43,0.67]
[1758499313974,33.0,236.44,236.41,4.89992315]
[1758499314180,33.0,236.44,236.42,0.67]
[1758499315981,33.0,236.44,236.42,4.89972205]
[1758499316570,33.0,236.44,236.43,0.67]
[1758499316976,33.0,236.44,236.42,4.22972205]
[1758499316977,33.0,236.44,236.41,1e-08]
[1758499317167,33.0,236.44,236.41,0.70000001]
[1758499317367,33.0,236.44,236.42,0.7]
[1758499320383,132.2,236.45,236.43,0.7]
[1758499320591,32.96,236.44,236.41,4.22993258]
[1758499321186,32.96,236.44,236.42,0.7]
[1758499321386,32.96,236.44,236.43,0.7]
[1758499321591,132.2,236.54,236.44,31.2]
[1758499321770,165.14,236.54,236.45,0.7]
[1758499322190,165.8,236.54,236.46,4.22904508]
[1758499322389,3.50210171,236.53,236.44,4.22926752]
[1758499322683,33.6,236.52,236.43,0.7]
[1758499322910,2.84210171,236.51,236.43,0.7]
[1758499323108,2.84210171,236.51,236.43,4.92951112]
[1758499323305,32.94,236.5,236.44,0.7]
[1758499323472,132.2,236.54,236.46,31.2]
[1758499323783,32.94,236.53,236.47,0.7]
[1758499323982,165.14,236.54,236.47,0.7]
[1758499324186,165.14,236.54,236.48,14.80040594]
[1758499324374,165.14,236.54,236.49,0.7]
[1758499324570,32.94,236.54,236.5,0.7]
[1758499324769,32.94,236.54,236.48,14.80040594]
[1758499324975,32.94,236.54,236.51,0.7]
[1758499325283,32.92,236.56,236.51,31.9]
[1758499325504,0.66,236.55,236.51,31.2]
[1758499325798,32.92,236.56,236.52,0.7]
[1758499326586,32.92,236.56,236.53,0.7]
[1758499326902,0.66,236.55,236.47,10.57193702]
[1758499327098,32.92,236.54,236.47,23.81627418]
[1758499327400,32.92,236.54,236.47,11.27193702]
[1758499327578,0.66,236.53,236.45,4.92922393]
[1758499327781,165.12,236.54,236.47,31.2]
[1758499327782,0.66,236.52,236.47,31.2]
[1758499328088,0.66,236.52,236.45,4.92922393]
[1758499328089,32.94,236.51,236.45,4.22922393]
[1758499328402,32.94,236.5,236.47,0.7]
[1758499328779,33.6,236.5,236.45,4.92922393]
[1758499329105,32.94,236.5,236.46,0.7]
[1758499329280,32.94,236.5,236.47,0.7]
[1758499329479,32.94,236.5,236.45,4.22922393]
[1758499329697,32.94,236.5,236.46,0.7]
[1758499329880,32.94,236.5,236.47,0.7]
[1758499330192,32.94,236.52,236.49,4.2285086]
[1758499330414,32.94,236.52,236.49,4.9285086]
[1758499330976,32.94,236.52,236.49,4.2285086]
[1758499331303,132.2,236.54,236.5,0.7]
[1758499331598,165.12,236.54,236.51,0.7]
[1758499332901,132.2,236.54,236.52,0.7]
[1758499333079,132.2,236.54,236.49,10.57127151]
[1758499333284,132.2,236.54,236.5,0.7]
[1758499333485,132.2,236.54,236.51,0.7]
[1758499333691,132.2,236.54,236.52,0.7]
[1758499333995,132.2,236.54,236.49,10.57127151]
[1758499334174,132.2,236.54,236.5,0.7]
[1758499334578,132.87,236.54,236.49,10.57127151]
[1758499334880,132.2,236.54,236.49,14.79978011]
[1758499335202,132.2,236.54,236.5,0.7]
[1758499335498,132.2,236.54,236.52,31.2]
[1758499335675,132.2,236.54,236.53,0.7]
[1758499335881,32.92,236.57,236.53,0.7]
[1758499336289,32.92,236.57,236.52,31.2]
[1758499336484,33.59,236.57,236.52,31.9]
[1758499337102,33.59,236.57,236.53,4.22779351]
[1758499337401,32.92,236.57,236.53,14.79727729]
[1758499337608,32.92,236.57,236.54,0.7]
[1758499337794,132.2,236.61,236.56,31.2]
[1758499337984,32.9,236.61,236.57,0.7]
[1758499338486,32.9,236.61,236.58,0.7]
[1758499338694,32.9,236.61,236.56,31.2]
[1758499338695,32.9,236.61,236.59,0.7]
[1758499339010,0.77,236.66,236.6,0.7]
[1758499339196,32.9,236.65,236.6,0.7]
[1758499339399,32.9,236.65,236.61,0.7]
[1758499339590,0.67,236.64,236.58,0.7]
[1758499339793,0.67,236.64,236.57,35.42707866]
[1758499340008,0.67,236.63,236.57,4.22707866]
[1758499340181,33.57,236.62,236.57,4.22707866]
[1758499340384,0.67,236.61,236.57,4.22707866]
[1758499340597,0.67,236.6,236.57,4.22707866]
[1758499340798,0.67,236.6,236.56,4.22725735]
[1758499341197,32.9,236.62,236.56,4.22725735]
[1758499341397,33.57,236.62,236.56,4.92725735]
[1758499342313,32.9,236.62,236.56,15.49540073]
[1758499342511,32.9,236.62,236.57,0.7]
[1758499342806,0.67,236.61,236.56,14.79540073]
[1758499343009,0.67,236.61,236.56,15.49540073]
[1758499343195,0.67,236.6,236.56,4.22725735]
[1758499343518,32.9,236.62,236.56,4.22725735]
[1758499343694,0.67,236.6,236.56,4.22725735]
[1758499343889,33.55,236.59,236.54,35.42743897]
[1758499344110,33.55,236.59,236.54,36.12743897]
[1758499345902,33.55,236.59,236.56,4.22725735]
[1758499345903,32.88,236.59,236.56,4.22725735]
[1758499346194,32.88,236.59,236.56,4.92725735]
[1758499346394,32.88,236.62,236.57,0.7]
[1758499346810,0.69,236.61,236.56,4.22725735]
[1758499346990,0.69,236.61,236.57,0.72]
[1758499347207,32.88,236.62,236.57,0.72]
[1758499348099,32.88,236.62,236.58,4.22689999]
[1758499348490,32.88,236.62,236.58,4.94689999]
[1758499348891,0.69,236.61,236.58,4.22689999]
[1758499349096,32.88,236.62,236.54,31.2]
[1758499349097,0.69,236.6,236.54,31.2]
[1758499349308,0.69,236.6,236.55,4.22743606]
[1758499349610,0.69,236.6,236.56,0.72]
[1758499349811,0.69,236.6,236.55,4.22743606]
[1758499350009,0.69,236.6,236.55,4.94743606]
[1758499351138,37.1062142,236.62,236.55,4.22743606]
[1758499351337,0.69,236.59,236.55,4.22743606]
[1758499352243,32.88,236.62,236.56,0.72]
[1758499354045,32.88,236.62,236.57,4.22707866]
[1758499354213,32.88,236.62,236.57,15.51477532]
[1758499354415,33.57,236.62,236.57,15.51477532]
[1758499354902,0.69,236.61,236.57,14.79477532]
[1758499355316,32.88,236.62,236.58,0.72]
[1758499356223,33.57,236.62,236.59,4.22672133]
[1758499356529,0.69,236.61,236.59,4.22672133]
[1758499356732,32.88,236.62,236.59,4.22672133]
[1758499357130,33.57,236.62,236.59,4.22672133]
[1758499357518,32.88,236.62,236.59,4.22672133]
[1758499357725,32.82,236.63,236.6,0.72]
[1758499358024,32.82,236.63,236.59,14.79352466]
[1758499358208,32.82,236.63,236.59,10.56680333]
[1758499358611,32.82,236.63,236.59,11.28680333]
[1758499358832,33.51,236.63,236.59,11.28680333]
[1758499359039,32.82,236.63,236.59,11.28680333]
[1758499359718,32.82,236.63,236.6,0.72]
[1758499359922,32.82,236.63,236.61,4.22636405]
[1758499360146,33.51,236.63,236.61,4.22636405]
[1758499360461,0.69,236.62,236.61,4.22636405]
[1758499360809,0.1,236.66,236.62,31.2]
[1758499361013,0.1,236.66,236.64,31.2]
[1758499361439,0.1,236.66,236.65,0.72]
[1758499361957,0.1,236.66,236.65,4.94564969]
[1758499363843,0.1,236.66,236.65,4.22564969]
[1758499365650,0.1,236.66,236.65,4.94564969]
[1758499367342,0.1,236.66,236.65,36.14564969]
[1758499374160,0.1,236.66,236.65,37.72564969]
[1758499375477,1e-08,236.66,236.65,51.3212437]
[1758499380362,0.1,236.67,236.66,13.59559401]
[1758499380363,1e-08,236.67,236.66,13.59559401]
[1758499380565,1e-08,236.67,236.66,14.25559401]
[1758499381969,1e-08,236.67,236.66,51.22106515]
[1758499383344,1e-08,236.67,236.66,71.22106515]
[1758499386393,1e-08,236.67,236.66,38.48106515]
[1758499386552,1e-08,236.67,236.66,50.52106515]
[1758499388980,1e-08,236.67,236.66,51.18106515]
[1758499389165,1e-08,236.67,236.66,18.48106515]
[1758499389352,1e-08,236.67,236.66,51.18106515]
[1758499389954,1e-08,236.67,236.66,71.18106515]
[1758499390154,1e-08,236.67,236.66,72.87400769]
[1758499390581,0.1,236.72,236.7,17.82035108]
[1758499390766,0.1,236.72,236.71,46.29559401]
[1758499392683,1e-08,236.72,236.71,51.1801726]
[1758499393175,1e-08,236.73,236.72,13.59559401]
[1758499393387,1e-08,236.73,236.72,34.24559401]
[1758499394269,1e-08,236.73,236.72,38.46999414]
[1758499394885,0.1,236.76,236.75,31.2]
[1758499395183,0.1,236.76,236.75,63.88]
[1758499396584,0.1,236.76,236.75,80.93274461]
[1758499397277,0.1,236.76,236.75,80.91274461]
[1758499397461,0.1,236.76,236.75,81.56274461]
[1758499399676,0.1,236.76,236.75,48.25274461]
[1758499399990,0.1,236.76,236.75,80.91274461]
[1758499400174,0.1,236.76,236.75,81.56274461]
[1758499400370,0.1,236.76,236.75,80.91274461]
[1758499400573,0.1,236.76,236.75,81.56274461]
[1758499401875,1e-08,236.76,236.75,81.56274461]
[1758499404175,1e-08,236.76,236.75,95.15833862]
[1758499404485,0.82,236.85,236.83,31.2]
[1758499404685,0.82,236.85,236.84,32.7]
[1758499404884,0.1,236.85,236.84,32.7]
[1758499405494,0.82,236.85,236.84,32.7]
[1758499405873,0.1,236.85,236.84,50.25110919]
[1758499406067,0.1,236.85,236.84,46.94559401]
[1758499406288,0.1,236.85,236.84,51.16785376]
[1758499407868,0.1,236.85,236.84,54.47980847]
[1758499408179,1e-08,236.86,236.85,13.59559401]
[1758499408385,1e-08,236.86,236.85,18.46767549]
[1758499410365,0.1,236.9,236.85,29.0228792]
[1758499410595,0.1,236.9,236.89,44.79559401]
[1758499410779,0.1,236.9,236.89,77.45559401]
[1758499411376,1e-08,236.9,236.89,78.10559401]
[1758499412282,1e-08,236.91,236.89,78.10559401]
[1758499412498,1e-08,236.91,236.9,18.46678438]
[1758499413968,1e-08,236.91,236.9,51.12678438]
[1758499415581,1e-08,236.91,236.9,18.46678438]
[1758499415789,0.67000001,236.91,236.9,17.81678438]
[1758499416090,0.67000001,236.91,236.9,50.45678438]
[1758499416592,0.67000001,236.91,236.9,50.43678438]
[1758499417005,0.67000001,236.91,236.9,17.81678438]
[1758499417190,0.67000001,236.91,236.9,50.43678438]
[1758499418122,0.67000001,236.91,236.9,17.81678438]
[1758499418312,0.67000001,236.91,236.9,50.43678438]
[1758499419010,0.67000001,236.91,236.9,17.81678438]
[1758499419179,0.67000001,236.91,236.9,50.43678438]
[1758499419794,0.67000001,236.91,236.9,17.81678438]
[1758499419981,0.67000001,236.91,236.88,10.55377129]
[1758499419982,0.67000001,236.91,236.88,41.75377129]
[1758499420193,0.67000001,236.91,236.9,31.2]
[1758499420584,1e-08,236.91,236.89,32.6]
[1758499420911,0.67000001,236.91,236.89,32.6]
[1758499421207,0.67000001,236.91,236.9,31.2]
[1758499421385,0.67000001,236.91,236.9,32.6]
[1758499422085,1e-08,236.91,236.9,32.6]
[1758499422498,1e-08,236.91,236.9,63.8]
[1758499422811,0.67000001,236.91,236.9,32.6]
[1758499423710,0.67000001,236.91,236.9,36.82119037]
[1758499423711,1e-08,236.91,236.9,36.82119037]
[1758499425812,1e-08,236.91,236.9,35.42119037]
[1758499425999,0.67000001,236.91,236.9,35.42119037]
[1758499426313,1e-08,236.91,236.9,35.42119037]
[1758499426494,1e-08,236.91,236.9,82.24678438]
[1758499429708,1e-08,236.91,236.9,49.66678438]
[1758499430017,1e-08,236.91,236.9,82.22678438]
[1758499430511,1e-08,236.91,236.9,49.01678438]
[1758499430711,1e-08,236.91,236.9,82.22678438]
[1758499433429,1e-08,236.91,236.9,81.57678438]
[1758499433625,1e-08,236.91,236.9,82.22678438]
[1758499436500,1e-08,236.91,236.9,49.66678438]
[1758499436703,1e-08,236.91,236.9,82.22678438]
[1758499440112,1e-08,236.91,236.9,49.66678438]
[1758499440410,1e-08,236.91,236.9,82.22678438]
[1758499444026,1e-08,236.91,236.9,86.7675854]
[1758499445609,1e-08,236.91,236.9,88.45873856]
[1758499453266,0.65,236.98,236.96,44.79559401]
[1758499453567,0.65,236.98,236.97,46.13559401]
[1758499453747,0.1,236.99,236.98,13.59559401]
[1758499453938,0.1,236.99,236.98,26.57677464]
[1758499454132,0.1,236.99,236.91,4.54080102]
[1758499454360,0.65,236.98,236.92,46.13559401]
[1758499454560,0.65,236.97,236.91,13.59559401]
[1758499454761,0.65,236.96,236.92,32.54]
[1758499454983,0.65,236.95,236.91,44.79559401]
[1758499455179,4.31968084,236.99,236.92,32.54]
[1758499455478,0.65,236.94,236.93,63.74]
[1758499456076,0.65,236.94,236.93,32.54]
[1758499456880,0.65,236.94,236.93,46.13559401]
[1758499457466,0.65,236.94,236.93,50.35624989]
[1758499459498,0.65,236.94,236.93,17.81624989]
[1758499459704,0.65,236.94,236.93,31.2]
[1758499460369,0.65,236.94,236.93,35.42065588]
[1758499461789,0.65,236.96,236.93,45.9722956]
[1758499461973,0.65,236.96,236.94,32.54]
[1758499462170,0.75,236.99,236.95,13.59559401]
[1758499462397,0.65,236.98,236.96,32.54]
[1758499463798,0.65,236.98,236.97,4.21994345]
[1758499464000,0.1,236.99,236.97,36.75994345]
[1758499464500,0.65,236.98,236.97,36.75994345]
[1758499465673,0.1,236.99,236.97,36.75994345]
[1758499465875,0.1,236.99,236.97,68.65994345]
[1758499466070,0.1,236.99,236.98,13.59559401]
[1758499466391,0.1,236.99,236.98,14.29559401]
[1758499467095,0.1,236.99,236.98,13.59559401]
[1758499467492,0.1,236.99,236.98,14.25559401]
[1758499468293,0.1,236.99,236.98,17.81535939]
[1758499469696,0.81,236.99,236.98,35.41976538]
[1758499469996,0.81,236.99,236.98,67.95976538]
[1758499472107,0.81,236.99,236.98,35.41976538]
[1758499472273,0.81,236.99,236.98,67.95976538]
[1758499474611,0.81,236.99,236.98,31.2]
[1758499474796,0.81,236.99,236.96,32.54]
[1758499474973,0.71,236.98,236.96,63.74]
[1758499475172,0.71,236.97,236.96,63.74]
[1758499475395,0.81,236.99,236.96,63.74]
[1758499475581,0.71,236.98,236.96,63.74]
[1758499475973,0.71,236.98,236.96,67.95998848]
[1758499477301,0.1,236.99,236.96,67.95998848]
[1758499477799,0.1,236.99,236.97,0.66]
[1758499478004,0.1,236.99,236.98,37.41976538]
[1758499478205,0.1,236.99,236.98,36.75976538]
[1758499478381,0.81,236.99,236.98,36.75976538]
[1758499478906,0.1,236.99,236.98,36.75976538]
[1758499483981,0.1,236.99,236.98,37.41976538]
[1758499484186,0.1,236.99,236.98,36.07976538]
[1758499484500,0.1,236.99,236.98,68.61976538]
[1758499485201,0.1,236.99,236.98,67.95976538]
[1758499485699,0.1,236.99,236.98,68.61976538]
[1758499486001,0.1,236.99,236.98,82.21535939]
[1758499491611,0.81,236.99,236.98,81.55535939]
[1758499491910,0.81,236.99,236.98,67.95976538]
[1758499492706,0.81,236.99,236.96,31.2]
[1758499493011,0.71,236.98,236.97,32.54]
[1758499493912,0.71,236.98,236.96,32.54]
[1758499494101,0.71,236.97,236.96,32.54]
[1758499494507,0.71,236.97,236.96,36.76012153]
[1758499496415,0.1,236.99,236.96,36.76012153]
[1758499496604,0.81,236.99,236.96,4.22012153]
[1758499496908,0.1,236.99,236.97,32.54]
[1758499497490,0.1,236.99,236.98,0.7]
[1758499498514,0.1,236.99,236.98,4.21976538]
[1758499499517,0.1,236.99,236.98,4.91976538]
[1758499499817,0.1,236.99,236.98,49.71535939]
[1758499501324,0.1,237.0,236.99,44.79559401]
[1758499501502,1e-08,237.0,236.99,51.05518133]
[1758499502098,1e-08,237.0,236.99,52.74576268]
[1758499503719,1e-08,237.0,236.99,53.16772141]
[1758499504602,1e-08,237.0,236.99,57.70852243]
[1758499507201,1e-08,237.0,236.99,24.7465637]
[1758499507400,1e-08,237.0,236.99,57.2865637]
[1758499507726,1e-08,237.0,236.99,24.0465637]
[1758499507899,1e-08,237.0,236.99,50.35518133]
[1758499508399,1e-08,237.0,236.99,51.05518133]
[1758499509496,1e-08,237.0,236.99,50.35518133]
[1758499510107,1e-08,237.0,236.99,51.07518133]
[1758499510930,0.68000001,237.0,236.99,17.81518133]
[1758499511231,1e-08,237.0,236.99,50.33518133]
[1758499512220,0.68000001,237.0,236.91,13.11046649]
[1758499512528,0.68000001,237.0,236.97,31.2]
[1758499512729,0.68,236.99,236.97,31.2]